bitfinex-derivatives/quotes_SOLF0:USTF0_20250714
["timestamp","ask_amount","ask_price","bid_price","bid_amount"]
[1752516150494,7.93442471,164.17,164.16,3.41]
[1752516150685,3.41,164.16,164.13,3.61]
[1752516150888,7.97442471,164.14,164.13,9.7022]
[1752516153085,7.97442471,164.14,164.13,3.61]
[1752516153589,3.41,164.14,164.13,3.61]
[1752516154192,3.41,164.14,164.13,9.7024]
[1752516154689,3.41,164.14,164.13,3.61]
[1752516154996,3.41,164.13,164.07,3.61]
[1752516155489,3.41,164.16,164.08,4.56442471]
[1752516155692,3.41,164.16,164.09,3.61]
[1752516156094,3.41,164.15,164.14,3.61]
[1752516156692,7.97442471,164.17,164.11,3.61]
[1752516157086,3.41,164.17,164.16,9.7013]
[1752516157286,4.56442471,164.19,164.16,3.61]
[1752516157490,3.41,164.19,164.16,3.61]
[1752516157790,3.41,164.2,164.19,3.61]
[1752516157991,3.41,164.22,164.19,3.61]
[1752516158191,3.41,164.22,164.21,6.0891]
[1752516158392,3.41,164.22,164.21,9.6991]
[1752516158792,3.41,164.23,164.16,4.56442471]
[1752516158995,3.41,164.23,164.22,3.61]
[1752516159493,3.41,164.23,164.22,9.6991]
[1752516159694,4.56442471,164.25,164.22,9.6991]
[1752516159695,3.41,164.24,164.22,3.61]
[1752516159890,3.41,164.24,164.23,3.61]
[1752516160593,3.41,164.24,164.23,9.6983]
[1752516160789,4.56442471,164.25,164.23,9.6983]
[1752516160790,176.64,164.26,164.23,3.61]
[1752516160995,3.41,164.25,164.21,3.61]
[1752516161388,3.41,164.25,164.24,6.088]
[1752516161587,3.41,164.25,164.24,9.698]
[1752516163192,176.64,164.26,164.25,6.0879]
[1752516163396,176.64,164.26,164.25,9.6979]
[1752516163589,3.41,164.28,164.26,3.61]
[1752516163794,3.41,164.28,164.27,3.61]
[1752516164300,3.41,164.28,164.25,3.61]
[1752516165192,3.41,164.27,164.25,3.61]
[1752516165598,3.41,164.27,164.26,3.61]
[1752516165801,3.41,164.27,164.26,9.6976]
[1752516166401,10.65062471,164.3,164.27,6.0871]
[1752516166596,3.41,164.28,164.27,3.61]
[1752516167502,3.41,164.28,164.26,9.6975]
[1752516167701,3.41,164.27,164.26,6.0875]
[1752516168303,3.41,164.27,164.26,9.6975]
[1752516168498,3.41,164.29,164.28,3.61]
[1752516169504,3.41,164.29,164.21,4.56442471]
[1752516169703,4.56442471,164.28,164.26,3.61]
[1752516170002,3.41,164.27,164.26,3.61]
[1752516173604,3.41,164.27,164.24,9.6983]
[1752516173605,9.4972,164.27,164.24,9.6983]
[1752516173806,3.41,164.27,164.24,9.6983]
[1752516174000,3.41,164.25,164.13,17.28792182]
[1752516174209,3.41,164.23,164.22,3.61]
[1752516174903,3.41,164.23,164.22,9.6991]
[1752516175207,7.97442471,164.24,164.23,3.61]
[1752516175501,7.97442471,164.24,164.21,3.61]
[1752516175709,3.41,164.23,164.22,3.61]
[1752516176010,3.41,164.23,164.17,3.61]
[1752516176209,3.41,164.23,164.22,3.61]
[1752516177213,3.41,164.21,164.2,3.61]
[1752516177408,3.41,164.21,164.14,3.61]
[1752516177613,3.41,164.19,164.18,3.61]
[1752516178713,7.97442471,164.2,164.19,3.61]
[1752516179207,3.41,164.19,164.12,3.61]
[1752516179418,4.56442471,164.15,164.09,526.34]
[1752516179622,4.56442471,164.15,164.11,3.61]
[1752516179623,3.41,164.14,164.11,3.61]
[1752516179824,3.41,164.13,164.12,9.7025]
[1752516180020,4.56442471,164.16,164.12,3.61]
[1752516180322,180.09,164.18,164.14,3.61]
[1752516180524,4.56442471,164.19,164.14,3.61]
[1752516180823,7.89442471,164.19,164.14,3.61]
[1752516181014,3.33,164.19,164.14,3.61]
[1752516181420,3.33,164.18,164.14,3.61]
[1752516181621,9.4199,164.2,164.17,9.4309]
[1752516181819,3.33,164.19,164.18,3.34]
[1752516182426,3.33,164.2,164.19,3.34]
[1752516183123,4.56442471,164.21,164.19,3.34]
[1752516183324,7.89442471,164.21,164.16,3.34]
[1752516184828,3.33,164.21,164.16,3.34]
[1752516185030,7.89442471,164.23,164.16,3.34]
[1752516185328,3.33,164.22,164.16,3.34]
[1752516186029,3.33,164.22,164.21,3.34]
[1752516186530,3.33,164.22,164.2,6.0896]
[1752516186531,3.33,164.23,164.22,3.34]
[1752516186827,3.33,164.25,164.22,3.34]
[1752516187029,180.07,164.26,164.25,6.0879]
[1752516187230,180.07,164.26,164.25,9.4279]
[1752516188031,176.74,164.26,164.25,9.4279]
[1752516188329,3.33,164.28,164.26,6.0873]
[1752516188527,3.33,164.28,164.27,3.34]
[1752516188825,9.4168,164.28,164.25,6.0878]
[1752516189031,3.33,164.27,164.26,3.34]
[1752516189730,3.33,164.27,164.26,9.4276]
[1752516190230,3.33,164.28,164.27,9.4272]
[1752516190530,4.56442471,164.29,164.27,6.0872]
[1752516190732,7.89442471,164.29,164.28,3.34]
[1752516191328,3.33,164.28,164.27,3.34]
[1752516191533,3.33,164.28,164.26,6.0874]
[1752516191725,3.33,164.27,164.26,9.4274]
[1752516192229,3.33,164.28,164.27,3.34]
[1752516192430,3.33,164.28,164.27,9.4272]
[1752516193028,3.33,164.28,164.27,3.34]
[1752516193626,3.33,164.28,164.26,9.4274]
[1752516193827,4.56442471,164.29,164.26,9.4274]
[1752516194025,3.33,164.27,164.26,3.34]
[1752516194232,4.56442471,164.27,164.17,4.56442471]
[1752516194425,7.89442471,164.25,164.18,3.34]
[1752516195123,7.89442471,164.25,164.24,3.34]
[1752516195328,7.89442471,164.25,164.18,3.34]
[1752516195329,3.33,164.24,164.18,3.34]
[1752516195527,7.89442471,164.23,164.18,3.34]
[1752516195729,3.33,164.22,164.18,3.34]
[1752516195929,3.33,164.22,164.2,6.0896]
[1752516196135,3.33,164.22,164.21,3.34]
[1752516196327,4.56442471,164.23,164.21,3.34]
[1752516196533,7.89442471,164.23,164.22,3.34]
[1752516197835,3.33,164.23,164.22,3.34]
[1752516199235,3.33,164.23,164.22,9.4291]
[1752516199432,184.71442471,164.26,164.22,3.34]
[1752516199732,184.71442471,164.26,164.24,6.0881]
[1752516200132,184.71442471,164.26,164.25,3.34]
[1752516200333,176.82,164.26,164.25,9.4279]
[1752516200932,180.15,164.26,164.25,3.34]
[1752516201138,180.15,164.26,164.23,3.34]
[1752516201438,180.15,164.26,164.19,4.56442471]
[1752516201439,3.33,164.25,164.24,9.4283]
[1752516201638,176.82,164.26,164.24,9.4283]
[1752516201828,180.15,164.26,164.25,3.34]
[1752516202440,186.2376,164.26,164.25,3.34]
[1752516202640,176.82,164.26,164.23,6.0885]
[1752516202839,3.33,164.24,164.18,3.34]
[1752516203138,3.33,164.2,164.19,3.34]
[1752516203330,4.56442471,164.23,164.19,3.34]
[1752516203536,3.33,164.21,164.2,3.34]
[1752516205338,4.56442471,164.22,164.2,9.4298]
[1752516205542,7.89442471,164.25,164.21,3.34]
[1752516205839,13.98252471,164.25,164.22,6.0888]
[1752516206339,3.33,164.24,164.23,3.34]
[1752516206838,3.33,164.24,164.23,9.4287]
[1752516207035,3.33,164.25,164.24,3.34]
[1752516207740,9.4179,164.25,164.24,3.34]
[1752516208843,3.33,164.25,164.24,3.34]
[1752516209246,176.86,164.27,164.24,3.34]
[1752516209545,176.86,164.27,164.25,6.0879]
[1752516209743,180.19,164.27,164.26,3.34]
[1752516210138,180.19,164.27,164.26,9.4276]
[1752516210443,176.86,164.27,164.26,9.4276]
[1752516210643,176.86,164.27,164.26,3.34]
[1752516210845,180.45,164.27,164.26,3.34]
[1752516211035,176.86,164.27,164.26,3.34]
[1752516211844,180.45,164.27,164.26,3.34]
[1752516212643,176.86,164.27,164.26,9.4276]
[1752516212843,529.93,164.31,164.26,3.34]
[1752516213043,3.59,164.3,164.26,3.34]
[1752516213248,3.59,164.29,164.28,3.31]
[1752516213642,6.77646835,164.35,164.18,12.1806]
[1752516213643,3.59,164.34,164.32,3.31]
[1752516213847,3.59,164.36,164.33,3.31]
[1752516214142,14.23892471,164.35,164.32,6.085]
[1752516214342,3.59,164.34,164.32,6.085]
[1752516214546,3.59,164.34,164.27,4.56442471]
[1752516214950,4.56442471,164.35,164.27,4.56442471]
[1752516215146,9.6742,164.36,164.29,4.56442471]
[1752516216049,9.6742,164.36,164.32,6.085]
[1752516216250,9.6744,164.35,164.33,3.31]
[1752516216545,3.59,164.34,164.33,3.31]
[1752516217752,9.6746,164.34,164.31,9.3956]
[1752516218053,9.6746,164.34,164.32,3.31]
[1752516218247,3.59,164.34,164.32,9.3953]
[1752516218454,3.59,164.34,164.33,3.31]
[1752516220951,3.59,164.33,164.25,4.56442471]
[1752516221151,3.59,164.3,164.27,3.31]
[1752516221355,3.59,164.29,164.27,3.31]
[1752516221548,3.59,164.29,164.28,9.3966]
[1752516221953,10.65032471,164.31,164.28,9.3966]
[1752516222149,3.59,164.3,164.29,3.31]
[1752516222553,9.6761,164.3,164.29,3.31]
[1752516222754,3.59,164.29,164.28,9.3966]
[1752516222955,3.59,164.3,164.29,9.3965]
[1752516223151,3.59,164.36,164.26,3.31]
[1752516223352,4.56442471,164.31,164.26,3.31]
[1752516223552,3.59,164.3,164.29,3.31]
[1752516223952,4.56442471,164.31,164.29,3.31]
[1752516224261,4.56442471,164.35,164.3,3.31]
[1752516224459,3.59,164.34,164.3,3.31]
[1752516224861,3.59,164.34,164.33,6.085]
[1752516225068,3.59,164.35,164.33,3.31]
[1752516225261,3.59,164.34,164.33,3.31]
[1752516225762,3.59,164.34,164.33,9.3947]
[1752516226560,6.084,164.36,164.34,6.0846]
[1752516226866,3.59,164.35,164.34,6.0846]
[1752516227359,3.59,164.35,164.34,3.31]
[1752516227664,3.59,164.34,164.33,9.3948]
[1752516228256,3.59,164.34,164.33,3.31]
[1752516228463,3.59,164.34,164.32,9.3951]
[1752516228963,3.59,164.34,164.33,9.395]
[1752516233870,3.59,164.34,164.33,3.31]
[1752516236669,3.59,164.33,164.26,3.31]
[1752516236865,4.56442471,164.31,164.26,3.31]
[1752516237065,3.59,164.3,164.26,3.31]
[1752516237266,3.59,164.3,164.29,6.0865]
[1752516237567,3.59,164.3,164.29,9.3965]
[1752516239272,3.59,164.3,164.29,6.0865]
[1752516240071,3.59,164.3,164.28,6.0867]
[1752516240572,3.49,164.31,164.3,6.0861]
[1752516240777,3.49,164.32,164.31,3.5]
[1752516240969,8.05442471,164.35,164.28,3.5]
[1752516241176,8.05442471,164.35,164.34,6.0846]
[1752516242774,3.49,164.37,164.36,6.0839]
[1752516243482,3.49,164.36,164.35,6.0842]
[1752516245685,3.49,164.36,164.35,9.5842]
[1752516246479,176.8,164.42,164.35,3.5]
[1752516246685,3.49,164.39,164.32,3.5]
[1752516247387,3.49,164.39,164.31,4.56442471]
[1752516247686,3.49,164.39,164.37,6.0831]
[1752516248787,3.49,164.37,164.36,3.5]
[1752516249679,3.49,164.37,164.36,9.5839]
[1752516249879,4.56442471,164.41,164.36,3.5]
[1752516250080,3.49,164.4,164.37,3.5]
[1752516250378,3.49,164.4,164.39,6.0828]
[1752516251982,3.49,164.4,164.29,3.5]
[1752516252281,707.93630139,164.43,164.31,3.5]
[1752516252282,4.56442471,164.37,164.31,3.5]
[1752516252482,3.49,164.35,164.31,3.5]
[1752516252885,3.49,164.35,164.34,6.0846]
[1752516254084,8.05442471,164.35,164.31,3.5]
[1752516254385,3.49,164.34,164.29,3.5]
[1752516254589,3.49,164.34,164.33,6.085]
[1752516254884,3.49,164.34,164.33,9.585]
[1752516255685,8.05442471,164.37,164.36,9.5839]
[1752516255987,8.05442471,164.37,164.36,6.0839]
[1752516256186,3.49,164.37,164.36,9.5839]
[1752516257686,8.56630139,164.39,164.38,6.0831]
[1752516257987,8.56630139,164.39,164.36,3.5]
[1752516257988,3.49,164.41,164.36,3.5]
[1752516258384,3.49,164.41,164.4,6.0824]
[1752516258690,3.49,164.41,164.4,9.5824]
[1752516259286,4.56442471,164.44,164.43,6.0813]
[1752516259785,8.05442471,164.44,164.43,6.0813]
[1752516261191,3.49,164.43,164.41,6.0819]
[1752516261585,3.49,164.43,164.4,3.5]
[1752516262093,3.49,164.43,164.42,6.0816]
[1752516263293,3.49,164.43,164.42,9.5816]
[1752516263691,3.49,164.43,164.42,6.0816]
[1752516264595,3.49,164.43,164.41,6.0819]
[1752516265195,3.49,164.42,164.37,3.5]
[1752516265488,3.49,164.39,164.37,3.5]
[1752516265692,8.05442471,164.39,164.38,6.0831]
[1752516265890,3.49,164.38,164.35,3.5]
[1752516266084,3.49,164.37,164.36,6.0839]
[1752516266284,3.49,164.38,164.37,3.5]
[1752516267492,3.49,164.38,164.37,9.5835]
[1752516267694,3.49,164.38,164.37,6.0835]
[1752516268999,3.49,164.38,164.37,9.5835]
[1752516269298,3.49,164.38,164.37,6.0835]
[1752516271500,3.49,164.38,164.37,9.6535]
[1752516273690,3.49,164.38,164.37,6.0835]
[1752516274301,3.49,164.38,164.37,9.6535]
[1752516276200,4.56442471,164.41,164.33,4.56442471]
[1752516276400,3.46,164.4,164.37,3.57]
[1752516277000,3.46,164.4,164.39,6.0825]
[1752516277201,3.46,164.4,164.34,3.57]
[1752516277406,3.46,164.38,164.37,6.0835]
[1752516279200,3.46,164.38,164.36,6.0838]
[1752516279393,3.46,164.36,164.3,3.57]
[1752516279597,3.46,164.34,164.33,6.085]
[1752516280107,3.46,164.34,164.33,9.655]
[1752516281099,7.14223175,164.39,164.34,6.0846]
[1752516281402,3.46,164.36,164.3,3.57]
[1752516282004,3.46,164.36,164.35,9.6542]
[1752516282404,3.46,164.36,164.35,6.0842]
[1752516282705,3.46,164.36,164.35,9.6542]
[1752516283205,9.08365646,164.39,164.38,6.0831]
[1752516284701,9.08365646,164.39,164.37,6.0833]
[1752516284897,3.46,164.38,164.37,6.0833]
[1752516285402,3.46,164.37,164.31,3.57]
[1752516285601,4.56442471,164.35,164.31,3.57]
[1752516285904,3.46,164.34,164.33,6.085]
[1752516291913,3.46,164.34,164.32,6.0852]
[1752516292210,3.46,164.32,164.29,3.57]
[1752516292406,3.46,164.32,164.31,6.0857]
[1752516295206,3.46,164.32,164.24,3.57]
[1752516295411,3.46,164.28,164.24,3.57]
[1752516295811,3.46,164.28,164.27,6.0872]
[1752516296911,3.46,164.28,164.27,9.6572]
[1752516299014,3.46,164.28,164.26,6.0874]
[1752516299213,3.46,164.28,164.21,117.05724953]
[1752516299214,3.46,164.28,164.25,3.57]
[1752516299610,3.46,164.28,164.27,6.0872]
[1752516300010,3.46,164.26,164.24,6.088]
[1752516300209,3.46,164.25,164.21,3.57]
[1752516300509,3.63,164.27,164.26,6.0876]
[1752516300712,3.63,164.27,164.26,9.5976]
[1752516301410,3.63,164.27,164.26,6.0876]
[1752516303312,3.63,164.27,164.26,9.5976]
[1752516303512,3.63,164.27,164.26,6.0876]
[1752516304510,3.63,164.27,164.26,9.5976]
[1752516305113,4.56442471,164.32,164.26,9.5976]
[1752516305114,3.63,164.29,164.26,3.51]
[1752516305516,3.63,164.31,164.29,3.51]
[1752516305815,3.63,164.33,164.27,3.51]
[1752516307410,3.63,164.33,164.32,6.0853]
[1752516309817,3.63,164.33,164.29,3.51]
[1752516310021,3.63,164.33,164.26,4.56442471]
[1752516310221,3.63,164.33,164.3,3.51]
[1752516310715,3.63,164.33,164.31,6.0856]
[1752516310919,3.63,164.33,164.3,3.51]
[1752516311423,3.63,164.33,164.31,6.0857]
[1752516311721,3.63,164.33,164.31,3.51]
[1752516311920,3.63,164.33,164.32,6.0853]
[1752516312121,3.63,164.33,164.29,3.51]
[1752516312320,3.63,164.31,164.25,3.51]
[1752516312525,3.63,164.31,164.3,9.5961]
[1752516315524,3.63,164.31,164.28,3.51]
[1752516315720,530.88919358,164.37,164.29,3.51]
[1752516315925,9.715,164.33,164.3,9.5957]
[1752516316120,3.63,164.32,164.3,3.51]
[1752516316425,6.0848,164.34,164.3,3.51]
[1752516316622,3.63,164.33,164.26,4.56442471]
[1752516316823,3.63,164.33,164.31,3.51]
[1752516317325,3.63,164.35,164.29,3.51]
[1752516318823,9.7143,164.35,164.29,3.51]
[1752516319124,3.63,164.33,164.29,3.51]
[1752516319827,3.63,164.34,164.33,9.5949]
[1752516320222,3.63,164.36,164.35,6.084]
[1752516320427,3.63,164.36,164.35,3.51]
[1752516320624,181.06442471,164.38,164.32,4.56442471]
[1752516320925,3.63,164.35,164.34,3.51]
[1752516322228,3.63,164.35,164.34,9.5943]
[1752516323223,187.14772471,164.38,164.35,6.084]
[1752516323534,3.63,164.36,164.35,9.594]
[1752516323726,187.14772471,164.38,164.3,4.56442471]
[1752516323727,3.63,164.37,164.36,3.51]
[1752516324427,6.0835,164.37,164.3,4.56442471]
[1752516324621,3.63,164.36,164.31,3.51]
[1752516325224,3.63,164.36,164.35,9.5941]
[1752516327929,3.63,164.36,164.35,6.0841]
[1752516328131,3.63,164.36,164.3,4.56442471]
[1752516328427,3.63,164.36,164.34,3.51]
[1752516328626,3.63,164.35,164.34,9.5943]
[1752516329332,3.63,164.36,164.35,6.0841]
[1752516329527,3.63,164.36,164.35,9.5941]
[1752516334533,9.7236,164.37,164.35,6.0841]
[1752516334730,3.64,164.36,164.35,9.4141]
[1752516336133,3.64,164.36,164.35,3.33]
[1752516337834,3.64,164.36,164.34,6.0844]
[1752516338032,3.64,164.36,164.29,4.56442471]
[1752516338229,9.724,164.36,164.3,3.33]
[1752516338430,3.64,164.35,164.3,3.33]
[1752516338632,3.64,164.35,164.33,3.33]
[1752516338935,6.084,164.36,164.29,4.56442471]
[1752516338936,3.64,164.34,164.29,4.56442471]
[1752516339334,3.64,164.34,164.33,6.085]
[1752516339534,3.64,164.34,164.33,9.415]
[1752516340035,3.64,164.34,164.27,3.33]
[1752516340231,4.56442471,164.33,164.27,3.33]
[1752516340537,3.64,164.32,164.27,3.33]
[1752516341240,3.64,164.32,164.3,3.33]
[1752516341841,3.64,164.32,164.31,6.0857]
[1752516342139,3.64,164.32,164.31,9.4157]
[1752516343840,3.64,164.32,164.3,3.33]
[1752516344137,3.64,164.32,164.29,3.33]
[1752516344439,3.64,164.3,164.27,3.33]
[1752516344636,3.64,164.3,164.24,3.33]
[1752516344839,3.64,164.28,164.26,6.0873]
[1752516345042,3.64,164.28,164.25,3.33]
[1752516345230,3.64,164.28,164.23,3.33]
[1752516345432,6.0878,164.26,164.23,9.4185]
[1752516345742,3.64,164.26,164.23,3.33]
[1752516346438,3.64,164.25,164.23,9.4185]
[1752516346739,3.64,164.25,164.2,3.33]
[1752516346940,3.64,164.25,164.19,4.56442471]
[1752516346941,3.64,164.25,164.24,6.0883]
[1752516347335,3.64,164.25,164.23,3.33]
[1752516348037,4.56442471,164.25,164.22,6.0888]
[1752516348234,3.64,164.24,164.22,6.0888]
[1752516348437,3.64,164.24,164.22,9.4188]
[1752516349541,3.64,164.24,164.23,6.0887]
[1752516349943,3.64,164.24,164.23,9.4187]
[1752516350538,3.64,164.24,164.23,6.0887]
[1752516351044,3.64,164.24,164.23,9.4187]
[1752516351546,3.64,164.24,164.23,6.0887]
[1752516351942,3.64,164.24,164.22,9.4189]
[1752516352142,3.64,164.24,164.22,6.0889]
[1752516352342,3.64,164.24,164.21,3.33]
[1752516352744,4.56442471,164.25,164.21,3.33]
[1752516353043,3.64,164.24,164.21,3.33]
[1752516353245,3.64,164.24,164.22,3.33]
[1752516353441,3.64,164.24,164.2,3.33]
[1752516353640,3.64,164.24,164.22,6.0888]
[1752516354641,3.64,164.24,164.23,6.0887]
[1752516354851,3.64,164.26,164.24,3.33]
[1752516355036,3.64,164.26,164.19,4.56442471]
[1752516355037,5.0848608,164.31,164.25,3.33]
[1752516355344,4.56442471,164.31,164.23,4.56442471]
[1752516355644,3.64,164.28,164.27,3.33]
[1752516355846,6.0861,164.3,164.27,6.0869]
[1752516356549,3.64,164.28,164.21,3.33]
[1752516356747,3.64,164.26,164.21,3.33]
[1752516357344,9.7277,164.26,164.21,3.33]
[1752516357548,6.0877,164.26,164.21,3.33]
[1752516357844,3.64,164.25,164.22,3.33]
[1752516358036,3.64,164.25,164.23,6.0883]
[1752516358240,3.64,164.25,164.23,9.4183]
[1752516358435,3.64,164.25,164.18,4.56442471]
[1752516358641,3.64,164.25,164.24,3.33]
[1752516359244,4.56442471,164.27,164.25,6.0879]
[1752516359446,3.64,164.26,164.25,6.0879]
[1752516359942,3.64,164.26,164.24,9.4182]
[1752516360347,3.64,164.25,164.24,9.4182]
[1752516361146,3.64,164.25,164.2,3.64]
[1752516361343,3.64,164.25,164.21,3.64]
[1752516361540,3.39,164.24,164.21,3.64]
[1752516361741,3.39,164.24,164.17,4.56442471]
[1752516361944,3.39,164.24,164.2,3.64]
[1752516362341,3.39,164.23,164.21,6.0893]
[1752516362550,3.39,164.22,164.16,3.64]
[1752516363150,3.39,164.22,164.2,6.0895]
[1752516363344,3.39,164.22,164.18,3.64]
[1752516363647,3.39,164.22,164.2,6.0896]
[1752516364050,4.56442471,164.23,164.15,180.80442471]
[1752516364349,3.39,164.22,164.21,6.0894]
[1752516365249,3.39,164.22,164.21,9.7294]
[1752516365649,3.39,164.22,164.21,6.0894]
[1752516365849,3.39,164.22,164.21,9.7294]
[1752516366557,4.56442471,164.28,164.2,4.56442471]
[1752516366755,4.56442471,164.28,164.21,3.64]
[1752516367256,3.39,164.27,164.25,6.0877]
[1752516368156,6.0873,164.27,164.25,6.0877]
[1752516368354,3.39,164.26,164.25,6.0877]
[1752516368752,4.56442471,164.28,164.2,3.64]
[1752516369058,3.39,164.25,164.21,3.64]
[1752516369356,3.39,164.25,164.23,6.0885]
[1752516371255,3.39,164.25,164.24,6.0883]
[1752516375157,3.39,164.25,164.23,6.0885]
[1752516375360,3.39,164.23,164.2,3.64]
[1752516375561,3.39,164.22,164.21,3.64]
[1752516375861,3.39,164.22,164.21,9.7294]
[1752516376463,3.39,164.23,164.22,9.7291]
[1752516376764,3.39,164.23,164.22,6.0891]
[1752516379168,3.39,164.23,164.22,9.7291]
[1752516381268,3.39,164.23,164.22,6.0891]
[1752516382471,3.39,164.23,164.22,9.7291]
[1752516382677,4.56442471,164.27,164.23,3.64]
[1752516382874,4.56442471,164.27,164.2,3.64]
[1752516383075,4.56442471,164.3,164.22,3.64]
[1752516383270,3.39,164.29,164.25,3.64]
[1752516383475,3.39,164.29,164.26,3.64]
[1752516383981,3.39,164.29,164.22,8.20442471]
[1752516384177,3.39,164.28,164.23,3.64]
[1752516384578,3.39,164.28,164.27,6.0872]
[1752516385581,3.39,164.31,164.27,3.64]
[1752516385879,3.39,164.32,164.27,3.64]
[1752516386079,6.0854,164.32,164.3,6.086]
[1752516386274,3.39,164.31,164.3,6.086]
[1752516387182,9.4757,164.31,164.29,6.0863]
[1752516387379,3.39,164.3,164.24,4.56442471]
[1752516387579,3.39,164.3,164.25,3.64]
[1752516387781,3.39,164.3,164.29,6.0865]
[1752516388482,3.39,164.3,164.23,3.64]
[1752516388682,3.39,164.27,164.21,3.64]
[1752516388981,3.39,164.27,164.26,6.0872]
[1752516390173,3.39,164.3,164.22,4.56442471]
[1752516390374,3.39,164.3,164.23,3.64]
[1752516390785,3.39,164.3,164.29,6.0865]
[1752516391583,3.39,164.3,164.29,9.7365]
[1752516391790,3.39,164.3,164.29,6.0865]
[1752516395084,3.39,164.3,164.29,9.7365]
[1752516395282,3.5,164.32,164.26,4.56442471]
[1752516395481,3.5,164.32,164.27,3.65]
[1752516395786,3.5,164.34,164.31,3.65]
[1752516395980,3.5,164.36,164.35,6.0842]
[1752516396785,6.0837,164.37,164.34,6.0845]
[1752516397085,3.5,164.35,164.34,9.7345]
[1752516397487,3.5,164.35,164.34,3.65]
[1752516398383,3.5,164.35,164.31,3.65]
[1752516398780,3.5,164.35,164.32,9.7352]
[1752516398981,3.5,164.34,164.32,9.7352]
[1752516399286,3.5,164.33,164.32,9.7352]
[1752516399785,3.5,164.33,164.25,4.56442471]
[1752516399981,3.5,164.31,164.26,3.65]
[1752516400385,6.0859,164.31,164.28,6.0866]
[1752516400586,3.5,164.29,164.28,9.7366]
[1752516402185,3.5,164.29,164.28,6.0866]
[1752516403986,3.5,164.28,164.23,4.56442471]
[1752516404286,3.5,164.27,164.24,3.65]
[1752516404882,4.56442471,164.28,164.24,3.65]
[1752516405087,3.5,164.27,164.24,3.65]
[1752516405790,3.5,164.26,164.24,9.738]
[1752516405987,3.5,164.25,164.24,9.738]
[1752516406291,4.56442471,164.26,164.23,6.0885]
[1752516406490,3.5,164.25,164.2,3.65]
[1752516406991,3.5,164.24,164.2,3.65]
[1752516407783,3.5,164.26,164.23,3.65]
[1752516407987,3.5,164.25,164.24,3.65]
[1752516408889,3.5,164.25,164.24,9.7383]
[1752516409293,3.5,164.25,164.23,6.0885]
[1752516409486,3.5,164.26,164.2,3.65]
[1752516409692,3.5,164.26,164.21,3.65]